bitfinex/quotes_ETHUSD_20250827
["timestamp","ask_amount","ask_price","bid_price","bid_amount"]
[1756294805434,3.1712,4606.4,4606.3,0.001]
[1756294805638,3.8312,4606.4,4606.3,0.001]
[1756294805841,3.8278,4606.4,4606.3,0.001]
[1756294806354,3.827,4606.4,4606.3,0.001]
[1756294808426,3.8304,4606.4,4606.3,0.001]
[1756294809050,3.827,4606.4,4606.3,0.001]
[1756294809257,0.1088,4606.4,4606.3,0.7539]
[1756294810828,0.1088,4606.4,4606.3,0.2963]
[1756294811860,0.1088,4606.4,4606.3,0.001]
[1756294812076,0.1105,4606.4,4606.3,0.001]
[1756294812429,0.1088,4606.4,4606.3,0.001]
[1756294812874,0.1105,4606.4,4606.3,0.001]
[1756294814633,0.1088,4606.4,4606.3,0.001]
[1756294815033,0.1088,4606.4,4606.3,0.2963]
[1756294815669,0.1088,4606.4,4606.3,0.7539]
[1756294816578,0.1088,4606.4,4606.3,0.001]
[1756294817062,0.1105,4606.4,4606.3,0.001]
[1756294817372,9.2467,4606.4,4606.3,0.001]
[1756294820265,5.6067,4606.4,4606.3,0.001]
[1756294820469,9.42330628,4606.4,4606.3,0.001]
[1756294823010,9.58950628,4606.4,4606.3,0.001]
[1756294823481,9.42330628,4606.4,4606.3,0.001]
[1756294828387,2.4388,4606.4,4606.3,0.3076]
[1756294828588,0.1088,4606.4,4606.3,0.7614]
[1756294831054,0.108,4606.4,4606.3,0.7614]
[1756294836571,0.11,4606.4,4606.3,0.7614]
[1756294840089,0.002,4606.4,4606.3,0.7614]
[1756294842566,0.002,4606.4,4606.3,0.8702]
[1756294842762,0.002,4606.4,4606.3,1.12442]
[1756294845041,0.002,4606.4,4606.3,1.14612939]
[1756294845242,0.002,4606.4,4606.3,1.12442]
[1756294848076,0.2804,4606.4,4606.3,0.001]
[1756294848972,0.2804,4606.4,4606.3,2.001]
[1756294850149,0.2787,4606.4,4606.3,2.001]
[1756294850745,0.1108,4606.4,4606.3,2.001]
[1756294851482,0.1125,4606.4,4606.3,2.001]
[1756294854678,0.1108,4606.4,4606.3,2.001]
[1756294854882,0.1108,4606.4,4606.3,2.3135]
[1756294855454,0.11,4606.4,4606.3,2.755]
[1756294855654,0.11,4606.4,4606.3,3.02732267]
[1756294859888,0.11,4606.4,4606.3,2.755]
[1756294860084,0.1117,4606.4,4606.3,2.001]
[1756294860472,0.2779,4606.4,4606.3,2.001]
[1756294861056,0.1117,4606.4,4606.3,2.001]
[1756294861585,0.11,4606.4,4606.3,2.001]
[1756294862165,0.1117,4606.4,4606.3,2.001]
[1756294862655,0.11,4606.4,4606.3,2.001]
[1756294863087,0.1117,4606.4,4606.3,2.001]
[1756294863281,0.2779,4606.4,4606.3,2.001]
[1756294863588,0.9379,4606.4,4606.3,2.001]
[1756294864190,1.27766748,4606.4,4606.3,2.001]
[1756294864389,0.9379,4606.4,4606.3,2.001]
[1756294865990,0.11,4606.4,4606.3,2.001]
[1756294866166,0.2796,4606.4,4606.3,2.001]
[1756294866692,0.2779,4606.4,4606.3,2.001]
[1756294867877,0.2796,4606.4,4606.3,2.001]
[1756294869357,0.9379,4606.4,4606.3,2.001]
[1756294869559,0.9396,4606.4,4606.3,2.001]
[1756294869783,3.9396,4606.4,4606.3,2.001]
[1756294872367,7.5826,4606.4,4606.3,2.001]
[1756294877304,8.235696,4606.4,4606.3,2.001]
[1756294878183,8.57550616,4606.4,4606.3,2.001]
[1756294878991,8.57380616,4606.4,4606.3,2.001]
[1756294879195,4.08981016,4606.4,4606.3,2.755]
[1756294879902,7.08901016,4606.4,4606.3,2.755]
[1756294883509,4.08901016,4606.4,4606.3,2.755]
[1756294885012,3.7492,4606.4,4606.3,2.755]
[1756294893612,6.7492,4606.4,4606.3,2.3135]
[1756294894645,6.7492,4606.4,4606.3,2.001]
[1756294894826,6.7492,4606.4,4606.3,2.3046]
[1756294895122,6.7492,4606.4,4606.3,2.734]
[1756294896193,6.7472,4606.4,4606.3,2.3046]
[1756294896400,6.7472,4606.4,4606.3,2.734]
[1756294897408,3.1092,4606.4,4606.3,2.734]
[1756294898814,3.1092,4606.4,4606.3,2.3046]
[1756294899011,3.7709,4606.4,4606.3,2.001]
[1756294899440,3.9371,4606.4,4606.3,2.001]
[1756294901653,5.949,4606.3,4605.6,0.001]
[1756294901852,2.949,4605.6,4604.7,0.001]
[1756294902167,9.8435816,4604.9,4604.7,0.001]
[1756294902326,13.4815816,4604.9,4604.7,0.001]
[1756294902516,13.7549816,4604.9,4604.7,0.001]
[1756294902942,14.0948992,4604.9,4604.7,0.001]
[1756294903121,13.9302992,4604.9,4604.7,0.001]
[1756294903447,14.04044703,4604.9,4604.7,0.001]
[1756294904310,14.03964703,4604.9,4604.7,0.001]
[1756294906043,13.69972943,4604.9,4604.7,0.001]
[1756294909134,14.039636,4604.9,4604.7,0.001]
[1756294909738,14.040636,4604.9,4604.7,0.001]
[1756294912933,14.205236,4604.9,4604.7,0.001]
[1756294913466,14.040636,4604.9,4604.7,0.001]
[1756294914844,13.70072943,4604.9,4604.7,0.001]
[1756294916643,10.06172943,4604.9,4604.7,0.001]
[1756294916975,13.70072943,4604.9,4604.7,0.001]
[1756294918179,14.04063107,4604.9,4604.7,0.001]
[1756294919574,14.03733107,4604.9,4604.7,0.001]
[1756294919873,14.33573107,4604.9,4604.7,0.001]
[1756294921367,14.03733107,4604.9,4604.7,0.001]
[1756294922742,14.03933107,4604.9,4604.8,0.7727]
[1756294923140,14.03933107,4604.9,4604.8,0.021]
[1756294923441,14.13833107,4604.9,4604.8,0.021]
[1756294923646,14.03933107,4604.9,4604.8,0.021]
[1756294923868,10.29018324,4604.9,4604.8,0.7727]
[1756294924187,3.1108,4604.9,4604.8,0.7727]
[1756294924350,6.7498,4604.9,4604.8,0.7727]
[1756294925171,7.4098,4604.9,4604.8,0.7727]
[1756294927979,3.1108,4604.9,4604.8,0.7727]
[1756294928180,6.7498,4604.9,4604.8,0.7727]
[1756294928891,6.749,4604.9,4604.8,0.7727]
[1756294929088,3.11,4604.9,4604.8,0.7727]
[1756294929281,6.749,4604.9,4604.8,0.7727]
[1756294929883,7.08887691,4604.9,4604.8,0.7727]
[1756294930695,3.44987691,4604.9,4604.8,0.7727]
[1756294931258,3.7498,4604.9,4604.8,0.7727]
[1756294931582,3.1108,4604.9,4604.8,0.7727]
[1756294931791,0.1108,4604.9,4604.8,0.7727]
[1756294935075,0.002,4604.9,4604.8,2.46541646]
[1756294935409,0.002,4604.9,4604.8,3.18475811]
[1756294938699,0.002,4604.9,4604.8,3.29355811]
[1756294940220,0.002,4605.4,4604.8,3.29355811]
[1756294940514,0.002,4605.4,4605.3,6.1802816]
[1756294940720,0.002,4605.4,4605.3,9.9270816]
[1756294940882,0.002,4605.4,4605.3,11.23638976]
[1756294941208,0.002,4605.4,4605.3,11.68248976]
[1756294941793,0.002,4605.4,4605.3,11.79168976]
[1756294946024,0.002,4605.4,4605.3,5.77790012]
[1756294946223,0.002,4605.4,4605.3,4.78519196]
[1756294946421,0.002,4605.4,4605.3,10.96547356]
[1756294949635,0.002,4605.4,4605.3,10.64887356]
[1756294949934,0.002,4605.4,4605.3,10.51837356]
[1756294950323,0.002,4605.4,4605.3,10.96447356]
[1756294950527,0.002,4605.4,4605.3,12.06092092]
[1756294953328,0.0012,4605.4,4605.3,12.06092092]
[1756294953641,0.0012,4605.4,4605.3,11.89442896]
[1756294958125,0.0012,4605.4,4605.3,12.0570073]
[1756294958330,0.002,4605.9,4605.3,12.0570073]
[1756294958529,0.002,4605.9,4605.8,6.2890816]
[1756294958733,0.002,4605.9,4605.8,11.5950816]
[1756294958935,0.002,4605.9,4605.8,12.3577816]
[1756294959740,0.0004,4606.4,4605.8,12.4448186]
[1756294959931,0.0004,4606.4,4606.3,6.2890816]
[1756294960128,0.0004,4606.4,4606.3,10.55398976]
[1756294960333,0.0004,4606.4,4606.3,11.31668976]
[1756294960546,0.0004,4606.4,4606.3,11.40372176]
[1756294975035,0.0004,4606.4,4606.3,7.76772176]
[1756294975236,0.0004,4606.4,4606.3,11.40272176]
[1756294976257,0.0004,4606.4,4606.3,7.00502176]
[1756294976457,0.3109,4606.4,4606.3,10.0111136]
[1756294977622,0.3109,4606.4,4606.3,0.195832]
[1756294977826,0.3101,4606.4,4606.3,3.830832]
[1756294978653,0.3101,4606.4,4606.3,3.99438585]
[1756294978853,0.5016,4606.4,4606.3,3.79855385]
[1756294979022,0.3101,4606.4,4606.3,3.79855385]
[1756294980529,0.5016,4606.4,4606.3,3.79855385]
[1756294980729,0.5016,4606.4,4606.3,3.635]
[1756294981237,0.3101,4606.4,4606.3,3.635]
[1756294981560,0.002,4606.5,4606.3,3.635]
[1756294981942,0.0986,4606.4,4606.3,3.635]
[1756294982339,0.0986,4606.4,4606.3,3.79959725]
[1756294984252,0.0986,4606.4,4606.3,3.79859725]
[1756294985355,0.002,4606.5,4606.3,3.79859725]
[1756294985932,0.0986,4606.4,4606.3,3.79859725]
[1756294986238,0.0986,4606.4,4605.8,1.671]
[1756294986239,0.4991,4606.4,4606.2,0.1108]
[1756294986428,0.4005,4606.3,4606.0,3.634]
[1756294986635,0.1016,4606.1,4606.0,3.634]
[1756294987275,0.2104,4606.1,4606.0,3.634]
[1756294987991,0.6079,4606.1,4606.0,3.634]
[1756294988268,0.6079,4606.1,4605.8,1.671]
[1756294988469,0.2104,4606.1,4605.9,3.634]
[1756294988638,0.3975,4606.0,4605.9,3.634]
[1756294988841,0.3975,4606.0,4605.8,1.671]
[1756294988842,0.5021,4606.0,4605.8,1.671]
[1756294989042,0.1046,4606.0,4605.9,3.634]
[1756294989242,0.1046,4606.0,4605.8,1.671]
[1756294989547,0.1088,4606.1,4605.9,3.634]
[1756294990072,0.0986,4606.0,4605.9,3.634]
[1756294991646,0.1088,4606.1,4605.9,3.634]
[1756294992572,0.1088,4606.1,4606.0,0.7716]
[1756294993139,0.002,4606.5,4606.0,0.8804]
[1756294993349,0.002,4606.5,4606.1,3.634]
[1756294993558,0.002,4606.5,4606.1,4.0954]
[1756294993770,0.002,4606.5,4606.1,3.634]
[1756294993982,0.002,4606.5,4606.2,0.5722]
[1756294994145,0.002,4606.5,4606.3,3.634]
[1756294995087,0.002,4606.5,4606.4,0.8824]
[1756294995747,0.002,4606.5,4606.4,0.90410892]
[1756294996596,0.002,4606.5,4606.4,1.33621089]
[1756294996795,0.002,4606.5,4606.4,1.44501089]
[1756294997453,0.002,4606.5,4606.4,1.46671981]
[1756294998155,0.002,4606.5,4606.4,1.44501089]
[1756294999078,0.002,4606.5,4606.4,5.07901089]
[1756295001497,0.002,4606.5,4606.4,8.07901089]
[1756295002173,0.0012,4606.5,4606.4,8.07901089]
[1756295003562,0.0012,4606.5,4606.4,4.44501089]
[1756295003767,0.0012,4606.5,4606.4,7.61761089]
[1756295004195,0.0012,4606.5,4606.4,8.08881089]
[1756295007485,0.0012,4606.5,4606.4,4.45481089]
[1756295007665,0.0012,4606.5,4606.4,8.08881089]
[1756295009606,0.0012,4606.5,4606.4,3.67341089]
[1756295009790,0.0012,4606.5,4606.4,7.30741089]
[1756295010187,0.0012,4606.5,4606.4,7.59441089]
[1756295010392,0.0012,4606.5,4606.4,8.06561089]
[1756295010704,0.0012,4606.5,4606.4,7.59441089]
[1756295011573,0.0012,4606.5,4606.4,7.30741089]
[1756295012604,0.0012,4606.5,4606.4,8.06561089]
[1756295020908,0.3068,4606.5,4606.4,3.8536]
[1756295021504,0.3068,4606.5,4606.4,0.2196]
[1756295021704,0.3068,4606.5,4606.4,3.8526]
[1756295023510,0.3068,4606.5,4606.4,0.2196]
[1756295023695,0.3068,4606.5,4606.4,3.8526]
[1756295024090,0.0012,4606.5,4606.4,3.8526]
[1756295024311,0.0012,4606.5,4606.4,4.86710071]
[1756295025343,0.0012,4606.5,4606.4,4.6108]
[1756295025822,0.0012,4606.5,4606.4,4.1396]
[1756295026739,0.0004,4606.5,4606.4,4.1396]
[1756295029641,0.0004,4606.5,4606.4,7.6108]
[1756295030046,0.0004,4606.5,4606.4,7.502]
[1756295030241,0.0004,4606.5,4606.4,8.87032816]
[1756295032448,0.0004,4606.5,4606.4,9.53032816]
[1756295033362,0.02,4606.8,4606.5,3.66]
[1756295033518,0.02,4606.8,4606.7,9.8402816]
[1756295033854,0.02,4606.8,4606.7,11.8138816]
[1756295034028,0.02,4606.8,4606.7,14.01822468]
[1756295034228,0.02,4606.8,4606.7,14.10522468]
[1756295040065,0.02,4606.8,4606.7,14.21402468]
[1756295041847,0.02,4606.8,4606.7,17.84602468]
[1756295042020,0.1186,4606.8,4606.7,3.61454308]
[1756295042225,0.1186,4606.8,4606.7,5.4968]
[1756295042674,0.1186,4606.8,4606.7,6.284]
[1756295042675,0.02,4606.8,4606.7,6.284]
[1756295042819,0.02,4606.8,4606.7,11.16242816]
[1756295044039,0.022,4606.8,4606.7,11.16242816]
[1756295047455,0.022,4606.8,4606.7,16.88810976]
[1756295047660,0.022,4606.8,4606.7,17.34270976]
[1756295051240,0.0212,4606.8,4606.7,17.34270976]
[1756295051872,0.1198,4606.8,4606.7,3.11122816]
[1756295052036,0.5203,4606.8,4606.7,5.4968]
[1756295052739,0.5203,4606.8,4606.7,1.8648]
[1756295053086,0.5203,4606.8,4606.7,8.4968]
[1756295053688,0.5203,4606.8,4606.7,5.4968]
[1756295053884,0.1198,4606.8,4606.7,5.4968]
[1756295055851,0.5203,4606.8,4606.7,1.8648]
[1756295056052,0.5203,4606.8,4606.7,5.4968]
[1756295056578,0.1198,4606.8,4606.7,5.4968]
[1756295058395,0.1198,4606.8,4606.7,8.4968]
[1756295064912,0.1198,4606.8,4606.7,4.8648]
[1756295065204,0.1198,4606.8,4606.7,8.4968]
[1756295066300,0.1198,4606.8,4606.7,4.8648]
[1756295066477,0.1198,4606.8,4606.7,8.4968]
[1756295068200,0.1198,4606.8,4606.7,4.8648]
[1756295068410,0.1198,4606.8,4606.7,8.4968]
[1756295069607,0.1198,4606.8,4606.7,4.8648]
[1756295069786,0.1198,4606.8,4606.7,8.4968]
[1756295070387,0.0212,4606.8,4606.7,8.4968]
[1756295071909,0.0212,4606.8,4606.7,10.17021]
[1756295075712,0.0204,4606.8,4606.7,7.17021]
[1756295076785,0.0204,4606.8,4606.7,6.39371]
[1756295078508,0.3238,4606.8,4606.7,5.4968]
[1756295079496,0.0204,4606.8,4606.7,5.4968]
[1756295080921,0.119,4606.8,4606.7,5.4968]
[1756295082507,0.0204,4606.8,4606.7,5.4968]
[1756295083018,0.0204,4606.8,4606.7,6.2733]
[1756295083595,0.0204,4606.8,4606.7,9.42943]
[1756295083939,0.0204,4606.8,4606.7,10.56073]
[1756295085518,0.0204,4606.8,4606.7,10.78835101]
[1756295087225,0.0204,4606.8,4606.7,10.56073]
[1756295087924,0.0204,4606.8,4606.7,10.55973]
[1756295100234,0.0196,4606.8,4606.7,10.55973]
[1756295101505,0.0196,4606.8,4606.7,9.78323]
[1756295101957,0.3358,4606.8,4606.7,9.78323]
[1756295102129,0.0196,4606.8,4606.7,9.78323]
[1756295102508,0.0196,4606.8,4606.7,10.53433]
[1756295104236,0.002,4607.0,4606.8,3.66]
[1756295104435,0.002,4607.0,4606.8,6.1790682]
[1756295104612,0.002,4607.0,4606.8,6.44866116]
[1756295104932,0.002,4607.0,4606.8,6.53566116]
[1756295108353,0.002,4607.3,4606.8,6.76328217]
[1756295108642,0.4036,4609.1,4607.3,3.66]
[1756295108936,0.4036,4609.1,4607.8,3.66]
[1756295109144,0.4036,4609.1,4608.7,6.1802816]
[1756295109347,0.4036,4609.6,4608.7,9.8102816]
[1756295109506,0.1288,4609.8,4608.7,9.8102816]
[1756295109507,0.1288,4609.8,4608.7,12.30994571]
[1756295109710,0.02,4609.8,4608.7,15.30994571]
[1756295109952,0.02,4609.8,4608.7,15.41874571]
[1756295110106,0.02,4609.8,4608.7,16.07102071]
[1756295110307,0.02,4609.8,4608.7,16.12879474]
[1756295110540,0.4036,4609.5,4608.7,15.66899474]
[1756295110751,0.02,4609.8,4608.7,16.23962639]
[1756295112020,0.02,4609.8,4608.7,16.12879474]
[1756295112237,0.02,4609.8,4608.7,16.24000147]
[1756295112238,0.022,4608.8,4608.7,16.24000147]
[1756295115344,0.002,4609.3,4608.8,3.66]
[1756295115548,0.002,4609.3,4609.2,9.8402816]
[1756295115716,0.002,4609.3,4609.2,13.4692816]
[1756295116046,0.002,4609.3,4609.2,13.5780816]
[1756295116234,0.002,4609.3,4609.2,13.9816816]
[1756295117320,0.002,4609.3,4609.2,14.7327816]
[1756295117634,0.002,4609.3,4609.2,16.57195978]
[1756295118167,0.002,4609.3,4609.2,16.11215978]
[1756295118337,0.1006,4609.3,4609.2,11.53185978]
[1756295118537,0.1006,4609.3,4609.2,4.1414]
[1756295118747,0.1006,4609.3,4609.2,4.16309573]
[1756295119742,0.1006,4609.3,4609.2,0.5124]
[1756295119947,0.1006,4609.3,4609.2,4.1414]
[1756295121037,0.1006,4609.3,4609.2,0.5124]
[1756295121235,0.1006,4609.3,4609.2,4.1414]
[1756295122219,0.002,4609.3,4609.2,5.04413573]
[1756295122430,0.1036,4609.3,4609.2,5.02244]
[1756295123323,0.1036,4609.3,4609.2,0.5124]
[1756295123324,0.5011,4609.3,4609.2,0.5124]
[1756295123524,0.5011,4609.3,4609.2,4.1404]
[1756295123949,0.002,4609.3,4609.2,4.16209573]
[1756295124248,0.2926,4609.3,4609.2,0.5124]
[1756295124453,0.2926,4609.3,4609.2,4.1404]
[1756295124656,0.2918,4609.3,4609.2,4.1404]
[1756295127357,0.0012,4609.3,4609.2,5.01264]
[1756295127657,0.0998,4609.3,4609.2,4.72134]
[1756295128358,0.0998,4609.3,4609.2,4.1404]
[1756295129154,0.0998,4609.3,4609.2,0.5124]
[1756295129454,0.0998,4609.3,4609.2,4.1404]
[1756295130050,0.0998,4609.3,4609.2,0.5124]
[1756295130361,0.0998,4609.3,4609.2,4.1404]
[1756295131857,0.0998,4609.3,4609.2,0.5124]
[1756295132051,0.5003,4609.3,4609.2,4.1404]
[1756295133187,0.5003,4609.3,4609.2,3.628]
[1756295135743,0.5003,4609.3,4608.9,1.669]
[1756295135947,0.4005,4609.2,4609.0,3.628]
[1756295136152,0.4991,4609.1,4609.0,3.628]
[1756295137348,0.4991,4609.1,4609.0,3.64969668]
[1756295137349,0.1016,4609.1,4609.0,3.64969668]
[1756295138391,0.0012,4609.3,4609.0,4.4566]
[1756295138595,0.0012,4609.3,4609.1,0.4285]
[1756295138795,0.0012,4609.3,4609.2,3.64969573]
[1756295138951,0.0012,4609.3,4609.2,4.36949573]
[1756295139154,0.0012,4609.3,4609.2,4.3478]
[1756295140982,0.0012,4609.3,4609.2,4.4566]
[1756295141878,0.0012,4609.3,4609.2,3.7368]
[1756295143364,0.0012,4609.3,4609.2,4.3522571]
[1756295144075,0.0012,4609.3,4609.2,5.0720571]
[1756295144579,0.0012,4609.3,4609.2,4.3522571]
[1756295144775,0.0012,4609.3,4609.2,3.7368]
[1756295145687,0.0012,4609.3,4609.2,4.4566]
[1756295149154,0.0004,4609.3,4609.2,4.4566]
[1756295150357,0.0004,4609.3,4609.2,5.1166]
[1756295150557,0.0004,4609.3,4609.2,8.1166]
[1756295150796,0.0004,4609.3,4609.2,9.20406]
[1756295156579,0.2891,4609.3,4609.2,4.82326]
[1756295156893,0.2891,4609.3,4609.2,3.8446]
[1756295158594,0.2891,4609.3,4609.2,0.2176]
[1756295158992,0.2891,4609.3,4609.2,3.8446]
[1756295159294,0.5014,4609.3,4609.2,3.8446]
[1756295160490,0.2891,4609.3,4609.2,3.8446]
[1756295160687,0.2891,4609.3,4609.2,3.86629573]
[1756295160688,0.0004,4609.3,4609.2,3.86629573]
[1756295160889,0.0004,4609.3,4609.2,4.4199253]
[1756295161192,0.0004,4609.3,4609.2,3.8446]
[1756295161492,0.0004,4609.3,4609.2,3.86629573]
[1756295162096,0.099,4609.3,4609.2,3.86629573]
[1756295163406,0.0004,4609.3,4609.2,3.86629573]
[1756295163726,0.0004,4609.3,4609.2,4.15279573]
[1756295163870,0.099,4609.3,4609.2,0.2176]
[1756295164070,0.099,4609.3,4609.2,3.8446]
[1756295165371,0.099,4609.3,4609.2,0.2176]
[1756295165572,0.099,4609.3,4609.2,3.8446]
[1756295166302,0.0004,4609.3,4609.2,4.15279573]
[1756295166507,0.0004,4609.3,4609.2,5.17765573]
[1756295166678,0.0004,4609.3,4609.2,5.15596]
[1756295166882,0.0004,4609.3,4609.2,4.39606]
[1756295167389,0.0004,4609.3,4609.2,4.57376]
[1756295167596,0.0004,4609.3,4609.2,5.15596]
[1756295168006,0.0004,4609.3,4609.2,4.68256]
[1756295168178,0.0004,4609.3,4609.2,4.39606]
[1756295169706,0.099,4609.3,4609.2,3.8446]
[1756295170303,0.0004,4609.3,4609.2,3.8446]
[1756295171912,0.099,4609.3,4609.2,3.8446]
[1756295173201,0.0004,4609.3,4609.2,3.86629573]
[1756295173717,0.0216,4609.8,4609.2,3.75749573]
[1756295173911,0.0216,4609.8,4609.3,3.627]
[1756295174097,0.0216,4609.8,4609.5,0.1088]
[1756295174302,0.0986,4609.6,4609.5,0.1088]
[1756295174506,0.0986,4609.6,4609.5,5.4038]
[1756295174714,0.0986,4609.6,4609.5,5.8074]
[1756295175013,0.0216,4609.8,4609.5,5.8074]
[1756295175217,0.0216,4609.8,4609.6,3.64869385]
[1756295175589,0.0986,4609.7,4609.6,0.02169385]
[1756295175790,0.0986,4609.7,4609.6,3.64869385]
[1756295176299,0.0986,4609.7,4609.6,3.75749385]
[1756295177218,0.0986,4609.7,4609.6,3.7358]
[1756295177422,0.0986,4609.7,4609.6,3.75749385]
[1756295179419,0.0216,4609.8,4609.6,3.75749385]
[1756295179814,0.0986,4609.7,4609.6,3.627]
[1756295180398,0.0986,4609.7,4609.6,4.0275]
[1756295184248,0.0986,4609.7,4609.6,0.4005]
[1756295184441,0.4991,4609.7,4609.1,0.001]
[1756295184929,0.4991,4609.7,4609.3,0.001]
[1756295185301,0.5011,4609.7,4609.3,0.001]
[1756295185701,0.4005,4609.6,4609.3,0.001]
[1756295186207,0.1016,4609.4,4609.3,0.001]
[1756295186900,0.4991,4609.4,4609.3,0.001]
[1756295187543,0.4991,4609.4,4609.3,2.173]
[1756295187701,0.4991,4609.4,4609.3,0.001]
[1756295190807,10.4991,4609.4,4609.3,0.001]
[1756295194329,10.6079,4609.4,4609.3,0.001]
[1756295194502,10.6079,4609.4,4609.3,4.3776]
[1756295194503,7.1088,4609.4,4609.3,4.3776]
[1756295194704,0.002,4609.7,4609.3,4.81546]
[1756295194907,0.002,4609.7,4609.4,0.4635]
[1756295195215,0.002,4609.7,4609.4,6.6437816]
[1756295195418,0.002,4609.7,4609.6,0.2861]
[1756295195751,0.002,4609.7,4609.6,0.3949]
[1756295195952,0.002,4609.7,4609.6,1.97755106]
[1756295196448,0.002,4609.7,4609.6,1.99924491]
[1756295196608,0.002,4609.7,4609.6,1.97755106]
[1756295198281,0.0012,4609.7,4609.6,1.97755106]
[1756295198777,0.0012,4609.7,4609.6,5.60455106]
[1756295199339,0.0012,4609.7,4609.6,4.4854]
[1756295204290,0.0012,4609.7,4609.6,4.4354]
[1756295204969,0.0012,4609.7,4609.6,4.5442]
[1756295210902,0.0012,4609.7,4609.6,4.4942]
[1756295211485,0.0012,4609.7,4609.6,5.1542]
[1756295211685,0.0012,4609.7,4609.6,6.28774816]
[1756295212016,0.0012,4609.7,4609.6,9.28774816]
[1756295212170,7.0,4611.7,4609.7,3.66]
[1756295212365,0.1088,4611.6,4610.6,6.1802816]
[1756295212569,0.1088,4611.6,4610.7,5.7108]
[1756295212772,0.1088,4611.6,4610.7,7.34571181]
[1756295213007,0.1088,4611.6,4610.7,7.99778981]
[1756295213791,7.0,4611.7,4610.7,7.99778981]
[1756295214590,7.0,4611.7,4610.7,7.56838981]
[1756295214786,0.4393,4611.5,4610.7,3.94238981]
[1756295214989,0.4393,4611.5,4610.7,6.362878]
[1756295216280,0.4393,4611.5,4610.7,6.792278]
[1756295216875,7.0,4611.7,4610.7,6.792278]
[1756295218689,0.04,4611.8,4610.8,3.0]
[1756295218889,0.04,4611.8,4611.6,6.1802816]
[1756295219090,0.04,4611.8,4611.7,5.73148397]
[1756295219298,0.04,4611.8,4611.7,6.1392]
[1756295219595,0.04,4611.8,4611.7,6.79116]
[1756295220008,0.04,4611.8,4611.7,6.36176]
[1756295220895,0.04,4611.8,4611.7,6.79116]
[1756295221722,0.04,4611.8,4611.7,6.36176]
[1756295222222,0.04,4611.8,4611.7,6.79116]
[1756295222625,0.0392,4611.8,4611.7,6.79116]
[1756295223217,0.0392,4611.8,4611.7,6.36176]
[1756295223816,0.0412,4611.8,4611.7,6.36176]
[1756295224426,0.64,4611.8,4611.7,6.05376]
[1756295224793,0.2034,4611.8,4611.7,6.05376]
[1756295225728,0.2034,4611.8,4611.7,2.42876]
[1756295225895,0.2034,4611.8,4611.7,6.05376]
[1756295226225,0.0412,4611.8,4611.7,6.05376]
[1756295226801,0.0412,4611.8,4611.7,6.36176]
[1756295227021,0.0412,4611.8,4611.7,6.79116]
[1756295228321,0.0412,4611.8,4611.7,2.42876]
[1756295228322,0.2034,4611.8,4611.7,2.42876]
[1756295228502,0.64,4611.8,4611.7,6.05276]
[1756295229226,0.64,4611.8,4611.7,5.94396]
[1756295229423,0.0412,4611.8,4611.7,5.94396]
[1756295229723,0.0412,4611.8,4611.7,5.292]
[1756295229922,0.0412,4611.8,4611.7,5.6]
[1756295230090,0.0412,4611.8,4611.7,5.7088]
[1756295231727,0.0412,4611.8,4611.7,5.4008]
[1756295232428,0.0412,4611.8,4611.7,6.247]
[1756295232729,0.0412,4611.8,4611.7,16.0519816]
[1756295233228,0.0412,4611.8,4611.7,9.8717]
[1756295233534,0.0412,4611.8,4611.7,10.5317]
[1756295235334,0.0412,4611.8,4611.7,6.9077]
[1756295235899,0.0412,4611.8,4611.7,10.5347]
[1756295240407,0.0412,4611.8,4611.7,6.9077]
[1756295240612,0.0412,4611.8,4611.7,10.5327]
[1756295242735,0.002,4612.3,4611.9,0.66]
[1756295242934,0.002,4612.3,4612.2,6.8402816]
[1756295243106,0.002,4612.3,4612.2,13.8796816]
[1756295243304,0.002,4612.3,4612.2,14.3519816]
[1756295243518,0.002,4612.3,4612.2,14.4388696]
[1756295243736,0.002,4612.3,4612.2,16.04575925]
[1756295245342,0.02,4613.8,4612.3,3.66]
[1756295245543,0.02,4613.8,4612.7,6.8402816]
[1756295245753,0.02,4613.8,4612.7,20.7558816]
[1756295245963,0.02,4613.8,4612.7,21.2281816]
[1756295246131,0.02,4613.8,4612.7,23.35099976]
[1756295247271,0.0192,4612.8,4612.7,13.07341816]
[1756295247433,0.0192,4612.8,4612.7,16.39381816]
[1756295247434,0.1883,4612.8,4612.7,16.39381816]
[1756295247626,0.0192,4612.8,4612.7,16.39381816]
[1756295247851,0.0192,4612.8,4612.7,17.17071816]
[1756295249042,0.0192,4612.8,4612.7,17.60311816]
[1756295250651,0.0192,4612.8,4612.7,13.50581816]
[1756295250869,0.0192,4612.8,4612.7,23.00649976]
[1756295251035,0.0192,4612.8,4612.7,13.20121816]
[1756295251366,0.1883,4612.8,4612.7,16.82621816]
[1756295251530,0.0192,4612.8,4612.7,17.60311816]
[1756295252149,0.0192,4612.8,4612.7,23.00649976]
[1756295252664,0.0192,4612.8,4612.7,23.78339976]
[1756295254455,0.0192,4612.8,4612.7,23.31109976]
[1756295255064,0.0192,4612.8,4612.7,23.00549976]
[1756295255640,0.0192,4612.8,4612.7,23.31009976]
[1756295256262,0.1883,4612.8,4612.7,19.38149976]
[1756295256462,0.0192,4612.8,4612.7,23.00549976]